Cogmind - Beta 15 @@@ ROGUE MODE // 2025.08.09 @ 14:10:19 Player: ClassActJerk Result: Destroyed by G-34 Mercenary with Small Laser Performance ------------- Evolutions (1) 500 Regions Visited (2) 400 Robots Destroyed (22) 110 Value Destroyed (470) 470 Prototype IDs (2) 40 Alien Tech Used (0) 0 Bonus (0) 0 TOTAL SCORE: 1520 Bonus ------- None Cogmind --------- Core Integrity 0/400 Matter 234/300 Energy 100/100 System Corruption 0% Temperature Cool (6) Movement Core (50) Location -9/Materials Parts ------- > --- POWER (3) -------- (None) > --- PROPULSION (2) --- (None) > --- UTILITY (2) ------ (None) > --- WEAPON (2) ------- (None) > --- INVENTORY (5) ---- Heat Sink Small Storage Unit Peak State ------------ > --- POWER ------------ Ion Engine Light Ion Engine Improved Ion Engine > --- PROPULSION ------- Light Treads Improved Treads > --- UTILITY ---------- Medium Matter Pod Medium Matter Pod > --- WEAPON ----------- Medium Laser Light Cannon > --- INVENTORY -------- Light Treads Heat Sink Small Storage Unit Medium Laser Beam Rifle [Rating: 11] Favorites ----------- Power Light Ion Engine Engine Light Ion Engine Propulsion Wheel Treads Light Treads Leg Aluminum Leg Wheel Wheel Flight Unit Flight Unit Utility Small Storage Unit Device Heat Sink Storage Small Storage Unit Protection Light Armor Plating Weapon Assault Rifle Energy Gun Medium Laser Ballistic Gun Assault Rifle Ballistic Cannon Light Cannon Build | -11 -10 -9 ------- Run | Yrd Mat Mat Slots Evolved 2 | . . 2 Power 2 | . . 2 Propulsion . | . . . Utility . | . . . Weapon . | . . . Parts Attached 33 | 4 17 12 Power 7 | . 5 2 Engine 7 | . 5 2 Core . | . . . Reactor . | . . . Propulsion 10 | 2 4 4 Treads 3 | . . 3 Leg 3 | . 3 . Wheel 2 | 2 . . Hover . | . . . Flight 2 | . 1 1 Utility 7 | 1 3 3 Device 1 | . 1 . Storage 5 | 1 2 2 Processor . | . . . Hackware . | . . . Protection 1 | . . 1 Artifact . | . . . Weapon 9 | 1 5 3 Energy Gun 4 | . 1 3 Energy Cannon . | . . . Ballistic Gun 3 | 1 2 . Ballistic Cannon 2 | . 2 . Launcher . | . . . Special Weapon . | . . . Impact Weapon . | . . . Slashing Weapon . | . . . Piercing Weapon . | . . . Special Melee Weapon . | . . . Unidentified Prototypes . | . . . Parts Lost 6 | . 1 5 Power 2 | . 1 1 Propulsion 1 | . . 1 Utility 2 | . . 2 Weapon 1 | . . 1 Highest Loss Streak 5 | . 1 5 To Critical Strikes . | . . . Average Backups 5 | 5 4 3 Power . | . . . Propulsion 1 | 1 . . Utility 1 | . 1 2 Weapon 1 | 1 1 1 Tool/Special . | . . . Unused Backups 1 | . . 1 Power . | . . . Propulsion . | . . . Utility 1 | . . 1 Weapon . | . . . Tool/Special . | . . . Average Slot Usage (%) 85 | . 89 79 Engine 15 | . 11 22 Treads 5 | . . 15 Leg 8 | . 13 . Wheel 7 | . 11 . Device 5 | . 8 . Storage 17 | . 17 16 Protection 1 | . . 3 Energy Gun 5 | . 2 11 Ballistic Gun 6 | . 10 . Ballistic Cannon 11 | . 12 9 Peak Build Rating 11 | 4 7 11 Average Rating 4 | 3 6 8 On Entrance 3 | . 4 5 Naked Turns 5 | . . 5 Heaviest Build 25 | 7 16 25 Greatest Support 43 | 20 20 43 Greatest Overweight (x) 5 | . 3 5 Average Overweight (x) . | . . . Largest Inventory Capacity 25 | 8 8 25 Average Capacity 7 | 7 6 5 Most Carried 8 | 6 8 5 Average Carried 5 | 5 4 3 Final Capacity 8 | 8 5 5 Final Carried 6 | 6 5 2 Class Distribution -------------------- 97% | Mutant Dominant Class ---------------- Mutant | -10/Materials Mutant | -9/Materials Resources | -11 -10 -9 ----------- Run | Yrd Mat Mat Matter Collected 883 | 270 455 158 Remotely . | . . . Salvage Created 601 | 111 316 174 Parts 50 | 6 25 19 Haulers Intercepted . | . . . Recyclers Shooed . | . . . Parts Field Recycled . | . . . Retrieved Matter . | . . . Parts Self-Destructed . | . . . Prevented . | . . . Kills | -11 -10 -9 ------- Run | Yrd Mat Mat Combat Hostiles Destroyed 19 | . 12 7 Guns 12 | . 7 5 Cannons 7 | . 5 2 Classes Destroyed 6 | 2 3 1 Tunneler 1 | 1 . . Recycler 1 | 1 . . Watcher 1 | . 1 . Swarmer 10 | . 6 4 Grunt 7 | . 6 1 Sentry 2 | . . 2 Best Kill Streak 4 | 1 3 4 Combat Bots Only 4 | . 3 4 Max Kills in Single Turn 1 | 1 1 1 Gunslinging . | . . . Exploded . | . . . Melee . | . . . Uniques/NPCs Destroyed . | . . . Combat | -11 -10 -9 -------- Run | Yrd Mat Mat Hostile Shots Fired 205 | . 69 136 Missed 43 | . 16 27 Hits 162 | . 53 109 Projectile 162 | . 53 109 Critical Strikes 1 | . 1 . Damage Taken 1585 | . 580 1005 Core 501 | . 92 409 Absorbed by Shields . | . . . Core Remaining (%) 81 | 100 63 . Volleys Fired 91 | 11 47 33 Largest 2 | 1 2 2 Hottest 106 | 20 60 106 Shots Fired 146 | 11 79 56 Gun 92 | 11 47 34 Cannon 54 | . 32 22 Launcher . | . . . Special . | . . . Kinetic 112 | 11 79 22 Thermal 34 | . . 34 Explosive . | . . . Electromagnetic . | . . . Robot Hit Streak 7 | 3 7 7 Robot Miss Streak 6 | 2 6 5 Penetration Max . | . . . Secondary Targets 1 | . 1 . Max Gunslinging Chain 1 | . 1 . Shots Hit Robots 70 | 6 41 23 Core Hits 30 | 3 18 9 Critical Kills . | . . . Critical Parts Destroyed . | . . . Critical Strikes 2 | . 1 1 Burn 1 | . . 1 Blast 1 | . 1 . Melee Attacks . | . . . Impact . | . . . Slashing . | . . . Piercing . | . . . Sneak Attacks . | . . . Combat Hostiles . | . . . Follow-up Attacks . | . . . Damage Inflicted 946 | 74 534 338 Guns 551 | 74 309 168 Cannons 395 | . 225 170 Explosions . | . . . Melee . | . . . Ramming . | . . . Kinetic 778 | 74 534 170 Thermal 168 | . . 168 Explosive . | . . . Electromagnetic . | . . . Impact . | . . . Slashing . | . . . Piercing . | . . . Highest Corruption . | . . . Average Corruption . | . . . Corruption Purged . | . . . Corruption Blocked . | . . . Overload Shots . | . . . Overflow Damage . | . . . Projectiles . | . . . Explosions . | . . . Melee . | . . . Knockbacks 5 | . 4 1 Impact . | . . . Kinetic 5 | . 4 1 Secondary . | . . . Self-Inflicted Damage . | . . . Shots . | . . . Rammed . | . . . Targets Rammed . | . . . Kicked . | . . . Crushed . | . . . Highest Temperature 542 | . 12 542 Average Temperature 182 | . 9 188 Received Heat Transfer 333 | . 192 141 Effects 23 | . . 23 Shutdowns 7 | . . 7 Interference 5 | . . 5 Matter Decay 1 | . . 1 Short Circuit 1 | . . 1 Damage (major) 8 | . . 8 Damage (core) 1 | . . 1 Siege Activations . | . . . Martial Activations . | . . . Shielding Activations . | . . . Robots Disrupted . | . . . Combat Hostiles . | . . . Robots Corrupted . | . . . Combat Hostiles . | . . . Parts Fried . | . . . Impact Corruptions . | . . . Robots Melted . | . . . Combat Hostiles . | . . . Parts Melted . | . . . Heat Transferred 555 | . . 555 Parts Sabotaged . | . . . Parts Stolen . | . . . Parts Stripped . | . . . Power Chain Reactions . | . . . Alert | -11 -10 -9 ------- Run | Yrd Mat Mat Maximum Alert Level . | . . . Low Security (%) 100 | 100 100 100 Level 1 . | . . . Level 2 . | . . . Level 3 . | . . . Level 4 . | . . . Level 5 . | . . . High Security . | . . . Max Security . | . . . Peak Influence 156 | 5 120 156 Initial 18 | . . 18 Average 15 | . 50 47 Influence Increases 559 | 10 315 234 Destroy 0b10 Robot/C 380 | . 240 140 Destroy 0b10 Robot/NC 15 | 10 5 . Destroy Leader 82 | . 42 40 Successful Hack 36 | . 28 8 Destroy Structure 1 | . . 1 Lose Combat Pursuer 45 | . . 45 Influence Decreases 489 | 10 270 209 Entered New Map 27 | . . 27 Time Decay 402 | 10 260 132 Lost Part 60 | . 10 50 Squads Dispatched 3 | . 1 2 Investigation 2 | . 1 1 Extermination . | . . . Reinforcement 1 | . . 1 Assault . | . . . Garrison . | . . . Intercept . | . . . Searches Triggered . | . . . Construction Impeded . | . . . Haulers Reinforced . | . . . Active Scanning Responses . | . . . Cargo Convoy Interrupts . | . . . Stealth | -11 -10 -9 --------- Run | Yrd Mat Mat Distress Signals 2 | . 2 . Communications Jammed . | . . . Distress Signals . | . . . Times Spotted 38 | . 21 17 Peak Tracking Total 6 | . 6 5 Tactical Retreats 1 | . . 1 Traps | -11 -10 -9 ------- Run | Yrd Mat Mat Traps Triggered 1 | . 1 . Indirectly . | . . . Trap Hack Attempts . | . . . Triggered . | . . . Disarmed . | . . . Reprogrammed . | . . . Reused . | . . . Traps Extracted . | . . . Installed . | . . . Triggered . | . . . Machines | -11 -10 -9 ---------- Run | Yrd Mat Mat Machines Disabled . | . . . Max in Single Turn . | . . . Machines Repaired . | . . . Machines Dismantled . | . . . Machines Sabotaged . | . . . Overloaded Fab Kills . | . . . Hacking | -11 -10 -9 --------- Run | Yrd Mat Mat Machines Accessed 5 | . 3 2 Terminals 5 | . 3 2 Fabricators . | . . . Repair Stations . | . . . Recycling Units . | . . . Scanalyzers . | . . . Garrison Access . | . . . Total Hacks 15 | . 8 7 Successful 8 | . 5 3 Failed 7 | . 3 4 Catastrophic 1 | . . 1 Database Lockouts . | . . . Manual . | . . . Terminals 15 | . 8 7 Fabricators . | . . . Repair Stations . | . . . Recycling Units . | . . . Scanalyzers . | . . . Garrison Access . | . . . Terminal Hacks 8 | . 5 3 Prototype ID Bank 1 | . 1 . Branch Access Points 1 | . 1 . Emergency Access Points 1 | . 1 . Alert Level 1 | . . 1 Locate Traps 2 | . . 2 Surveillance Status 1 | . 1 . Recall Investigation 1 | . 1 . Fabricator Hacks . | . . . Repair Station Hacks . | . . . Recycling Unit Hacks . | . . . Scanalyzer . | . . . Garrison Access Hacks . | . . . Unauthorized Hacks . | . . . Terminals . | . . . Fabricators . | . . . Repair Stations . | . . . Recycling Units . | . . . Scanalyzers . | . . . Garrison Access . | . . . Data Cores Recovered . | . . . Used . | . . . Hacking Detections 4 | . 2 2 Full Trace Events 3 | . 1 2 Feedback Events . | . . . Feedback Blocked . | . . . Robot Schematics Acquired . | . . . Robots Built . | . . . Authchips . | . . . Time . | . . . Total Robot Build Rating . | . . . Part Schematics Acquired . | . . . Parts Built . | . . . Authchips . | . . . Time . | . . . Total Part Build Rating . | . . . Parts Repaired . | . . . Time . | . . . Parts Recycled . | . . . Recycled Matter . | . . . Retrieved Matter . | . . . Retrieved Components . | . . . Parts Scanalyzed . | . . . Part Schematics Acquired . | . . . Parts Damaged . | . . . Bothacking | -11 -10 -9 ------------ Run | Yrd Mat Mat Used RIF Installer . | . . . Robots Hacked . | . . . Non-combat . | . . . Combat . | . . . Robot Hacks Applied . | . . . Relay Couplers Released . | . . . Fabnet Peak Effective % . | . . . Robots Rewired . | . . . Allies Hacked . | . . . Hacks Repelled . | . . . Allies | -11 -10 -9 -------- Run | Yrd Mat Mat Total Allies . | . . . Largest Group . | . . . Highest-Rated Group . | . . . Highest-Rated Ally . | . . . Total Orders . | . . . Ally Attacks . | . . . Total Damage . | . . . Kills . | . . . Allies Corrupted . | . . . Allies Melted . | . . . Intel | -11 -10 -9 ------- Run | Yrd Mat Mat Active Infowar (turns) . | . . . Robot Analysis Total . | . . . Derelict Logs Recovered . | . . . Drone Launches . | . . . Drone Recoveries . | . . . Exploration | -11 -10 -9 ------------- Run | Yrd Mat Mat Turns Passed 4039 | 2816 788 435 Spaces Moved 1409 | 698 521 190 Core 49 | 34 14 1 Treads 172 | . . 172 Legs 254 | . 254 . Wheels 917 | 664 253 . Hover . | . . . Flight 17 | . . 17 Fastest Speed 50 | 50 80 120 Average Speed 103 | 78 116 162 Slowest Speed 300 | 80 200 300 Overloaded Moves . | . . . Propulsion Burnouts . | . . . Robots Hopped . | . . . Potential Cave-ins . | . . . Cave-ins Triggered . | . . . Exploration Rate (%) 39 | 45 54 18 Regions Visited 2 Branch Regions . Pre-discovered Areas . | . . . Known Exits Taken . | . . . Unknown Exits Taken 2 | 1 1 . Scrap Searched . | . . . Spaces Dug . | . . . Terrain Destroyed . | . . . Melee . | . . . Projectile . | . . . AOE . | . . . Terrain Rammed . | . . . Walls Destroyed . | . . . Machines Disabled . | . . . Actions | -11 -10 -9 --------- Run | Yrd Mat Mat Total 3845 | 2952 628 265 Wait 2258 | 2234 13 11 Move 1407 | 697 520 190 Hop . | . . . Pick Up 23 | 6 10 7 Fast Attach 13 | 4 7 2 Attach 17 | . 10 7 Detach 1 | . 1 . Swap 7 | . 4 3 Drop 28 | . 16 12 Fire 91 | 11 47 33 Melee . | . . . Ram . | . . . Kick . | . . . Crush . | . . . Escape Stasis . | . . . Rewire . | . . . Trap . | . . . Miscellaneous . | . . . Route ------- -11/Scrapyard -10/Materials (discovered 2 exits: *Mat / *Min) -9/Materials History --------- Turn | Location | Event 8 | -11/Scrapyard | Discovered new exit (range 15) 2817 | -11/Scrapyard | Entered Materials 2818 | -10/Materials | Build established: Mutant 3055 | -10/Materials | Discovered new exit (range 12) 3110 | -10/Materials | Discovered new exit (range 16) 3346 | -10/Materials | Identified exit to Mines 3605 | -10/Materials | Entered another Materials area 3605 | -9/Materials | Evolved 2 slots: Power x2 4021 | -9/Materials | Core integrity fell below 50% 4034 | -9/Materials | Core integrity fell below 20% 4040 | -9/Materials | Destroyed by G-34 Mercenary with Small Laser Last Messages --------------- 03972_ Power failure, Lgt. Ion Engine shutdown. 03973_ Overheating: System interference. 03973_ Beam Rifle temporarily disabled. 03974_ Acquired 19 matter. 03976_ Dropped Lgt. Treads. 03977_ Dropped Med. Laser. 03977_ Dropped Beam Rifle. 03979_ Dropped Med. Laser. 03979_ Dropped Lgt. Cannon. 03983_ Acquired Flight Unit. 03985_ Dropped Broken Imp. Ion Engine. 03987_ Acquired 4 matter. 04009_ Lgt. Armor Plating destroyed. 04013_ Lgt. Ion Engine destroyed. 04022_ R-06 Scavenger collects Lgt. Assault Rifle. 04030_ Flight Unit destroyed. 04031_ Beam Rifle destroyed. 04033_ S-10 Pest destroyed. 04035_ Med. Matter Pod destroyed. Map ----- +----------------------------------------------------+ | ?????????????? # !! #?????? | | ?????????????? ########?????? | | ?????????????? #????????????? | | ?????????????? #????????????? | | ?????????????? #????????????? | | ?????????????? #????????????? | | ?????????????? #????????????? | | ???????????????# ######## #????????????? | | ???????????????# ?######## ########?????? | | ????????????????? ??# # # #?????? | | ????????????????????#""" # # #?????? | | ????????????????????#""" # # """ #?????? | | ????????????????????#""" + + """ [#?????? | | ????????????????????# # # """ #?????? | | ???????????????#????# # # #?????? | | ???????????????# ??######## ####+###?????? | | ???????????????# ####### #?# #???????? | | ???????????????# #?# #???????? | | ???????????????# T #?# ######### | | ????????????#### #?# ## # | | ?????????? ^ #### #?# ## """ # | | ????????? ^ ???#######?# ## """ # | | ????????? ^^ ???????????# ## """ # | | ??????????k ############ ##! # | | ?????????? ^^ """ # """ # | | ??????????##### @ "T" +=""" # | | ??????????????# ss% g ! # """ # | | ??????????????# ####### s #= # | | ??????????????# ??????# #!!""" # | | ??????????????# ####### # R" # | | ??????????????# # """ # | | ??????????????# # = # | | ??????????????# ### #### | | ??????????????# #?###??? | | ??????????????# """"""" ######+#??????? | | ???????????????? """""" # ]==*[#??????? | | ??????????????? """"""" %#= [[==#??????? | | ???????????????? """"""" *+%* [ #??????? | | ???????????????? """"""" [#= ///#??????? | | ???????????????? # // #??????? | | ?????????????? # // #??????? | | ??????????????#########+############ #??????? | | ????????????????????? ???????????###??????? | | ???????????????????# ? ?????????????????????? | | ???????????????????#????????????????????????? | | ????????????????????????????????????????????? | | ????????????????????????????????????????????? | | ????????????????????????????????????????????? | | ????????????????????????????????????????????? | | ????????????????????????????????????????????? | +----------------------------------------------------+ Best States ------------- Heat Dissipation 38 Energy Generation 22 Energy Capacity 440 Matter Stores 354 Matter Capacity 500 Sight Range 16 Terrain Scan Density 10 Armor Coverage 150 Evasion (%) 55 Recoil Reduction 2 Item Schematics ----------------- None Robot Schematics ------------------ None Fabricated ------------ Nothing Repaired ---------- Nothing Alien Tech Used ----------------- None Achievements -------------- None Challenges ------------ None Game ------ Seed ArchitectImprinterSlayer Manual? 0 Play Time 00:30:13 Cumulative 11.9 hours Start 2025.08.09 @ 13:14:37 End 2025.08.09 @ 14:10:19 Sessions 3 Manual Loads 0 Difficulty Rogue Special Mode None Game No. 35 Rogue 35 Adventurer 0 Explorer 0 Win Type - Total 0 Types 0/0/0/0/0/0/0/0/0/0 Lore% 4 Gallery% 14 Achievement% 14 Wizard Run 0 Options --------- Layout 1 ASCII 0 Keyboard 0 Movement Mouse Keybinds 0 Fullscreen 1 Font 24/Smallcaps Map View 50x35 Zoom Use 13% Tactical HUD 1 Map Filters NONE Filters NONE Steam 1 RUN: feaa3e4c-1f6b-48c1-92a9-77af58f39cc4